[Event "Titled Tuesday Blitz December 13 Early 2022"]
[White "Mihajlov, Sebastian"]
[Black "Babazada, Khazar"]
[WhiteFideId "1512110"]
[BlackFideId "13413554"]
[WhiteElo "2595"]
[BlackElo "2805"]
[Result "0-1"]
[Round "05"]
[TimeControl "180+1"]
[Date "2022.12.14"]
[WhiteClock "0:00:02"]
[BlackClock "0:00:03"]

1. e4 {[%clk 0:03:00]}  e5 {[%clk 0:01:54]} 2. Nf3 {[%clk 0:02:56]}  d6 {[%clk 0:01:54]} 3. d4 {[%clk 0:02:56]}  Nd7 {[%clk 0:01:53]} 4. Bc4 {[%clk 0:02:53]}  exd4 {[%clk 0:01:33]} 5. Qxd4 {[%clk 0:02:40]}  Ngf6 {[%clk 0:01:30]} 6. Nc3 {[%clk 0:02:39]}  Be7 {[%clk 0:01:31]} 7. Bg5 {[%clk 0:02:35]}  O-O {[%clk 0:01:31]} 8. O-O-O {[%clk 0:02:30]}  c6 {[%clk 0:01:21]} 9. Bb3 {[%clk 0:02:22]}  Qa5 {[%clk 0:01:18]} 10. Rhe1 {[%clk 0:02:15]}  Ne5 {[%clk 0:01:13]} 11. Bd2 {[%clk 0:01:46]}  Qc7 {[%clk 0:01:04]} 12. Bf4 {[%clk 0:01:28]}  Nfd7 {[%clk 0:01:04]} 13. Qd2 {[%clk 0:01:19]}  a5 {[%clk 0:01:03]} 14. Nd4 {[%clk 0:01:15]}  Nc5 {[%clk 0:01:00]} 15. a3 {[%clk 0:01:11]}  b5 {[%clk 0:00:58]} 16. Nf5 {[%clk 0:01:06]}  Bxf5 {[%clk 0:00:43]} 17. exf5 {[%clk 0:01:07]}  Ned3+ {[%clk 0:00:39]} 18. Kb1 {[%clk 0:01:01]}  Nxe1 {[%clk 0:00:38]} 19. Rxe1 {[%clk 0:00:59]}  b4 {[%clk 0:00:34]} 20. Na4 {[%clk 0:00:50]}  Nxb3 {[%clk 0:00:34]} 21. cxb3 {[%clk 0:00:50]}  bxa3 {[%clk 0:00:33]} 22. bxa3 {[%clk 0:00:44]}  Rab8 {[%clk 0:00:33]} 23. Ka2 {[%clk 0:00:45]}  Qb7 {[%clk 0:00:33]} 24. Re3 {[%clk 0:00:43]}  Rfd8 {[%clk 0:00:31]} 25. g4 {[%clk 0:00:38]}  Bf6 {[%clk 0:00:31]} 26. g5 {[%clk 0:00:37]}  Be5 {[%clk 0:00:32]} 27. Bg3 {[%clk 0:00:34]}  Bxg3 {[%clk 0:00:22]} 28. Rxg3 {[%clk 0:00:35]}  Qb5 {[%clk 0:00:22]} 29. g6 {[%clk 0:00:33]}  hxg6 {[%clk 0:00:20]} 30. fxg6 {[%clk 0:00:33]}  f6 {[%clk 0:00:21]} 31. Re3 {[%clk 0:00:22]}  Re8 {[%clk 0:00:21]} 32. Rxe8+ {[%clk 0:00:10]}  Rxe8 {[%clk 0:00:22]} 33. Qxd6 {[%clk 0:00:10]}  Qe2+ {[%clk 0:00:19]} 34. Nb2 {[%clk 0:00:10]}  Qe4 {[%clk 0:00:20]} 35. Qg3 {[%clk 0:00:07]}  Rd8 {[%clk 0:00:10]} 36. h4 {[%clk 0:00:06]}  Qe6 {[%clk 0:00:07]} 37. h5 {[%clk 0:00:06]}  a4 {[%clk 0:00:06]} 38. Nxa4 {[%clk 0:00:05]}  c5 {[%clk 0:00:07]} 39. Qc7 {[%clk 0:00:03]}  Rc8 {[%clk 0:00:04]} 40. Qb7 {[%clk 0:00:02]}  c4 {[%clk 0:00:05]} 41. Nb2 {[%clk 0:00:01]}  c3 {[%clk 0:00:04]} 42. Nc4 {[%clk 0:00:01]}  Qe2+ {[%clk 0:00:04]} 43. Kb1 {[%clk 0:00:01]}  Qd1+ {[%clk 0:00:04]} 44. Ka2 {[%clk 0:00:02]}  Qc2+ {[%clk 0:00:04]} 45. Ka1 {[%clk 0:00:02]}  Rd8 {[%clk 0:00:03]} 46. Qf7+ {[%clk 0:00:02]}  Kh8 {[%clk 0:00:03]} 0-1


[Site "https://www.chess.com"]

[Event "Titled Tuesday Blitz December 13 Early 2022"]
[White "Miszler, Levente"]
[Black "Roque Sola, Jose Luis"]
[WhiteFideId "763276"]
[BlackFideId "5120390"]
[WhiteElo "2176"]
[BlackElo "2117"]
[Result "1-0"]
[Round "05"]
[TimeControl "180+1"]
[Date "2022.12.14"]
[WhiteClock "0:01:46"]
[BlackClock "0:00:02"]

1. Nf3 {[%clk 0:03:00]}  Nf6 {[%clk 0:02:56]} 2. c4 {[%clk 0:03:00]}  g6 {[%clk 0:02:51]} 3. g3 {[%clk 0:03:00]}  Bg7 {[%clk 0:02:50]} 4. Bg2 {[%clk 0:03:01]}  O-O {[%clk 0:02:50]} 5. O-O {[%clk 0:03:01]}  c5 {[%clk 0:02:49]} 6. Nc3 {[%clk 0:03:02]}  Nc6 {[%clk 0:02:41]} 7. d3 {[%clk 0:03:02]}  a6 {[%clk 0:02:40]} 8. a3 {[%clk 0:03:01]}  Rb8 {[%clk 0:02:39]} 9. Rb1 {[%clk 0:03:01]}  b5 {[%clk 0:02:33]} 10. cxb5 {[%clk 0:03:01]}  axb5 {[%clk 0:02:33]} 11. b4 {[%clk 0:03:02]}  cxb4 {[%clk 0:02:33]} 12. axb4 {[%clk 0:03:03]}  d5 {[%clk 0:02:32]} 13. Bf4 {[%clk 0:03:02]}  Rb6 {[%clk 0:02:22]} 14. Qd2 {[%clk 0:03:01]}  d4 {[%clk 0:02:18]} 15. Ne4 {[%clk 0:02:58]}  Nxe4 {[%clk 0:02:13]} 16. dxe4 {[%clk 0:02:59]}  e5 {[%clk 0:02:03]} 17. Bg5 {[%clk 0:02:59]}  Qd6 {[%clk 0:02:00]} 18. Rfc1 {[%clk 0:02:56]}  Bb7 {[%clk 0:01:51]} 19. Ne1 {[%clk 0:02:56]}  Ra8 {[%clk 0:01:39]} 20. Nd3 {[%clk 0:02:55]}  Rba6 {[%clk 0:01:01]} 21. Nc5 {[%clk 0:02:54]}  R6a7 {[%clk 0:01:01]} 22. e3 {[%clk 0:02:52]}  Bc8 {[%clk 0:00:54]} 23. exd4 {[%clk 0:02:49]}  Nxd4 {[%clk 0:00:49]} 24. Be3 {[%clk 0:02:43]}  Ra2 {[%clk 0:00:47]} 25. Rb2 {[%clk 0:02:37]}  Rxb2 {[%clk 0:00:38]} 26. Qxb2 {[%clk 0:02:38]}  Be6 {[%clk 0:00:36]} 27. Rd1 {[%clk 0:02:37]}  Bc4 {[%clk 0:00:27]} 28. Bxd4 {[%clk 0:02:35]}  exd4 {[%clk 0:00:25]} 29. e5 {[%clk 0:02:33]}  Qb8 {[%clk 0:00:14]} 30. Bxa8 {[%clk 0:02:33]}  Qxa8 {[%clk 0:00:14]} 31. Qxd4 {[%clk 0:02:33]}  Qf3 {[%clk 0:00:10]} 32. Ne4 {[%clk 0:02:08]}  Bxe5 {[%clk 0:00:07]} 33. Qd8+ {[%clk 0:02:08]}  Kg7 {[%clk 0:00:07]} 34. Ng5 {[%clk 0:02:05]}  Bf6 {[%clk 0:00:06]} 35. Nxf3 {[%clk 0:01:58]}  Bxd8 {[%clk 0:00:06]} 36. Ne5 {[%clk 0:01:55]}  Bf6 {[%clk 0:00:04]} 37. Nxc4 {[%clk 0:01:55]}  bxc4 {[%clk 0:00:05]} 38. Rc1 {[%clk 0:01:54]}  c3 {[%clk 0:00:06]} 39. b5 {[%clk 0:01:54]}  Bd4 {[%clk 0:00:06]} 40. b6 {[%clk 0:01:52]}  Bxb6 {[%clk 0:00:05]} 41. Rxc3 {[%clk 0:01:53]}  Bd4 {[%clk 0:00:06]} 42. Rc4 {[%clk 0:01:53]}  Bf6 {[%clk 0:00:06]} 43. Kg2 {[%clk 0:01:53]}  Be5 {[%clk 0:00:06]} 44. f4 {[%clk 0:01:53]}  Bb2 {[%clk 0:00:05]} 45. Kf3 {[%clk 0:01:54]}  Bf6 {[%clk 0:00:02]} 46. h3 {[%clk 0:01:54]}  Bb2 {[%clk 0:00:01]} 47. g4 {[%clk 0:01:53]}  Ba1 {[%clk 0:00:02]} 48. Ke4 {[%clk 0:01:53]}  Bb2 {[%clk 0:00:03]} 49. Rc7 {[%clk 0:01:53]}  Ba1 {[%clk 0:00:03]} 50. f5 {[%clk 0:01:50]}  Bb2 {[%clk 0:00:04]} 51. g5 {[%clk 0:01:49]}  gxf5+ {[%clk 0:00:02]} 52. Kxf5 {[%clk 0:01:50]}  Ba1 {[%clk 0:00:02]} 53. h4 {[%clk 0:01:50]}  Bb2 {[%clk 0:00:03]} 54. h5 {[%clk 0:01:50]}  Ba1 {[%clk 0:00:03]} 55. h6+ {[%clk 0:01:49]}  Kf8 {[%clk 0:00:03]} 56. Rb7 {[%clk 0:01:45]}  Bb2 {[%clk 0:00:02]} 57. Rb8+ {[%clk 0:01:46]} 1-0


[Site "https://www.chess.com"]

[Event "Titled Tuesday Blitz December 13 Early 2022"]
[White "Mitrovic, Darko R"]
[Black "Kuchava, Ana"]
[WhiteFideId "927023"]
[BlackFideId "13605348"]
[WhiteElo "2150"]
[BlackElo "2001"]
[Result "0-1"]
[Round "05"]
[TimeControl "180+1"]
[Date "2022.12.14"]
[WhiteClock "0:01:29"]
[BlackClock "0:01:32"]

1. d4 {[%clk 0:02:46]}  d5 {[%clk 0:02:58]} 2. Nf3 {[%clk 0:02:44]}  Nf6 {[%clk 0:02:56]} 3. g3 {[%clk 0:02:44]}  Bf5 {[%clk 0:02:53]} 4. Bg2 {[%clk 0:02:44]}  e6 {[%clk 0:02:52]} 5. O-O {[%clk 0:02:44]}  h6 {[%clk 0:02:52]} 6. h3 {[%clk 0:02:40]}  Bd6 {[%clk 0:02:44]} 7. b3 {[%clk 0:02:39]}  O-O {[%clk 0:02:43]} 8. Bb2 {[%clk 0:02:38]}  c5 {[%clk 0:02:42]} 9. c3 {[%clk 0:02:32]}  Nc6 {[%clk 0:02:40]} 10. Nbd2 {[%clk 0:02:32]}  cxd4 {[%clk 0:02:35]} 11. cxd4 {[%clk 0:02:32]}  Rc8 {[%clk 0:02:33]} 12. Rc1 {[%clk 0:02:19]}  Qa5 {[%clk 0:02:29]} 13. a3 {[%clk 0:02:12]}  Ne4 {[%clk 0:01:56]} 14. b4 {[%clk 0:02:11]}  Qb6 {[%clk 0:01:54]} 15. e3 {[%clk 0:02:05]}  a5 {[%clk 0:01:49]} 16. Nxe4 {[%clk 0:02:00]}  Bxe4 {[%clk 0:01:49]} 17. Nd2 {[%clk 0:01:49]}  Bxg2 {[%clk 0:01:48]} 18. h4 {[%clk 0:01:42]}  Bxf1 {[%clk 0:01:46]} 19. Nc4 {[%clk 0:01:40]}  Bxc4 {[%clk 0:01:45]} 20. Kh2 {[%clk 0:01:39]}  axb4 {[%clk 0:01:44]} 21. a4 {[%clk 0:01:38]}  b3 {[%clk 0:01:39]} 22. Kh1 {[%clk 0:01:38]}  Nb4 {[%clk 0:01:36]} 23. Kg1 {[%clk 0:01:37]}  Nd3 {[%clk 0:01:35]} 24. Kh1 {[%clk 0:01:37]}  Nxb2 {[%clk 0:01:33]} 25. Kh2 {[%clk 0:01:35]}  Nxd1 {[%clk 0:01:31]} 26. Rxd1 {[%clk 0:01:35]}  b2 {[%clk 0:01:31]} 27. Rb1 {[%clk 0:01:35]}  Bd3 {[%clk 0:01:31]} 28. Kg2 {[%clk 0:01:34]}  Bxb1 {[%clk 0:01:30]} 29. Kh1 {[%clk 0:01:34]}  Be4+ {[%clk 0:01:31]} 30. f3 {[%clk 0:01:32]}  b1=Q+ {[%clk 0:01:32]} 31. Kh2 {[%clk 0:01:32]}  Q6b2+ {[%clk 0:01:32]} 32. Kh3 {[%clk 0:01:31]}  Qh1+ {[%clk 0:01:32]} 33. Kg4 {[%clk 0:01:30]}  Qxf3+ {[%clk 0:01:32]} 34. Kh3 {[%clk 0:01:29]}  Qbg2# {[%clk 0:01:32]} 0-1


[Site "https://www.chess.com"]

[Event "Titled Tuesday Blitz December 13 Early 2022"]
[White "Nakamura, Hikaru"]
[Black "Goltsev, Dmitry"]
[WhiteFideId "2016192"]
[BlackFideId "24176710"]
[WhiteElo "2909"]
[BlackElo "2327"]
[Result "1-0"]
[Round "05"]
[TimeControl "180+1"]
[Date "2022.12.13"]
[WhiteClock "0:01:41"]
[BlackClock "0:00:15"]

1. Nf3 {[%clk 0:03:00]}  d5 {[%clk 0:02:59]} 2. b3 {[%clk 0:03:00]}  Nf6 {[%clk 0:02:59]} 3. Bb2 {[%clk 0:02:57]}  g6 {[%clk 0:02:59]} 4. e3 {[%clk 0:02:56]}  Bg7 {[%clk 0:02:59]} 5. c4 {[%clk 0:02:57]}  dxc4 {[%clk 0:02:58]} 6. Bxc4 {[%clk 0:02:55]}  O-O {[%clk 0:02:59]} 7. O-O {[%clk 0:02:54]}  Nbd7 {[%clk 0:02:57]} 8. d4 {[%clk 0:02:53]}  Nb6 {[%clk 0:02:57]} 9. Bd3 {[%clk 0:02:51]}  c6 {[%clk 0:02:57]} 10. Nbd2 {[%clk 0:02:48]}  Nbd5 {[%clk 0:02:57]} 11. a3 {[%clk 0:02:46]}  Bg4 {[%clk 0:02:55]} 12. h3 {[%clk 0:02:44]}  Bd7 {[%clk 0:02:54]} 13. Ne5 {[%clk 0:02:43]}  Be6 {[%clk 0:02:52]} 14. Re1 {[%clk 0:02:43]}  Nd7 {[%clk 0:02:51]} 15. Nef3 {[%clk 0:02:43]}  h6 {[%clk 0:02:48]} 16. Rc1 {[%clk 0:02:37]}  Rc8 {[%clk 0:02:46]} 17. Bf1 {[%clk 0:02:31]}  c5 {[%clk 0:02:42]} 18. Ne4 {[%clk 0:02:31]}  cxd4 {[%clk 0:02:41]} 19. Nxd4 {[%clk 0:02:30]}  Rxc1 {[%clk 0:02:32]} 20. Qxc1 {[%clk 0:02:31]}  Qc8 {[%clk 0:02:32]} 21. Qb1 {[%clk 0:02:24]}  N7f6 {[%clk 0:02:28]} 22. Rc1 {[%clk 0:02:20]}  Qb8 {[%clk 0:02:05]} 23. Nxe6 {[%clk 0:02:19]}  fxe6 {[%clk 0:02:06]} 24. Nc5 {[%clk 0:02:15]}  Qc8 {[%clk 0:01:44]} 25. Qxg6 {[%clk 0:02:11]}  b6 {[%clk 0:01:37]} 26. Ba6 {[%clk 0:02:03]}  Qc6 {[%clk 0:01:31]} 27. Bb5 {[%clk 0:02:03]}  Qc8 {[%clk 0:01:19]} 28. Bd7 {[%clk 0:02:00]}  bxc5 {[%clk 0:01:04]} 29. Bxc8 {[%clk 0:01:59]}  Rxc8 {[%clk 0:01:05]} 30. g4 {[%clk 0:01:53]}  Kh8 {[%clk 0:00:56]} 31. h4 {[%clk 0:01:53]}  Rg8 {[%clk 0:00:56]} 32. g5 {[%clk 0:01:53]}  Bf8 {[%clk 0:00:55]} 33. Qf7 {[%clk 0:01:45]}  hxg5 {[%clk 0:00:54]} 34. hxg5 {[%clk 0:01:46]}  Rxg5+ {[%clk 0:00:54]} 35. Kf1 {[%clk 0:01:46]}  Bh6 {[%clk 0:00:51]} 36. Ke2 {[%clk 0:01:44]}  Rg7 {[%clk 0:00:39]} 37. Qxe6 {[%clk 0:01:44]}  Kh7 {[%clk 0:00:33]} 38. Rh1 {[%clk 0:01:43]}  Rg6 {[%clk 0:00:20]} 39. Bxf6 {[%clk 0:01:41]}  Nxf6 {[%clk 0:00:15]} 40. Qxe7+ {[%clk 0:01:41]}  Kg8 {[%clk 0:00:15]} 41. Qxc5 {[%clk 0:01:41]} 1-0


[Site "https://www.chess.com"]

[Event "Titled Tuesday Blitz December 13 Early 2022"]
[White "Namitbir Singh Walia"]
[Black "Artemenko, Oleg"]
[WhiteFideId "35071068"]
[BlackFideId "14201798"]
[WhiteElo "2239"]
[BlackElo "2287"]
[Result "0-1"]
[Round "05"]
[TimeControl "180+1"]
[Date "2022.12.14"]
[WhiteClock "0:01:41"]
[BlackClock "0:02:08"]

1. e4 {[%clk 0:03:00]}  e6 {[%clk 0:02:53]} 2. d4 {[%clk 0:03:01]}  d5 {[%clk 0:02:51]} 3. Nd2 {[%clk 0:03:01]}  c5 {[%clk 0:02:51]} 4. exd5 {[%clk 0:03:01]}  Qxd5 {[%clk 0:02:52]} 5. dxc5 {[%clk 0:03:01]}  Bxc5 {[%clk 0:02:51]} 6. Ngf3 {[%clk 0:03:01]}  Nf6 {[%clk 0:02:52]} 7. Bd3 {[%clk 0:03:01]}  Nc6 {[%clk 0:02:51]} 8. Qe2 {[%clk 0:03:00]}  O-O {[%clk 0:02:50]} 9. Ne4 {[%clk 0:03:00]}  Be7 {[%clk 0:02:50]} 10. O-O {[%clk 0:02:40]}  h6 {[%clk 0:02:48]} 11. Rd1 {[%clk 0:02:34]}  Qh5 {[%clk 0:02:44]} 12. Ng3 {[%clk 0:02:34]}  Qa5 {[%clk 0:02:37]} 13. c3 {[%clk 0:02:28]}  e5 {[%clk 0:02:35]} 14. h3 {[%clk 0:02:26]}  Be6 {[%clk 0:02:33]} 15. b3 {[%clk 0:02:23]}  Rfd8 {[%clk 0:02:30]} 16. Bb2 {[%clk 0:02:23]}  Qc7 {[%clk 0:02:26]} 17. Rac1 {[%clk 0:02:22]}  Rd7 {[%clk 0:02:24]} 18. Bb1 {[%clk 0:02:23]}  Rad8 {[%clk 0:02:24]} 19. Rxd7 {[%clk 0:02:18]}  Qxd7 {[%clk 0:02:20]} 20. Nxe5 {[%clk 0:02:08]}  Nxe5 {[%clk 0:02:20]} 21. Qxe5 {[%clk 0:02:09]}  Qd2 {[%clk 0:02:21]} 22. c4 {[%clk 0:01:50]}  Bd6 {[%clk 0:02:10]} 23. Qe2 {[%clk 0:01:41]}  Bxg3 {[%clk 0:02:08]} 0-1


[Site "https://www.chess.com"]

[Event "Titled Tuesday Blitz December 13 Early 2022"]
[White "Odegov, Artem"]
[Black "Rosenberg, Evan S"]
[WhiteFideId "34183644"]
[BlackFideId "2019299"]
[WhiteElo "2300"]
[BlackElo "2420"]
[Result "1-0"]
[Round "05"]
[TimeControl "180+1"]
[Date "2022.12.14"]
[WhiteClock "0:00:51"]
[BlackClock "0:00:02"]

1. d4 {[%clk 0:03:00]}  d5 {[%clk 0:02:59]} 2. c4 {[%clk 0:03:00]}  e6 {[%clk 0:03:00]} 3. Nc3 {[%clk 0:02:59]}  c5 {[%clk 0:03:00]} 4. cxd5 {[%clk 0:02:59]}  cxd4 {[%clk 0:03:01]} 5. Qxd4 {[%clk 0:02:59]}  Nc6 {[%clk 0:03:00]} 6. Qd1 {[%clk 0:02:50]}  exd5 {[%clk 0:03:00]} 7. e3 {[%clk 0:02:50]}  Nf6 {[%clk 0:02:58]} 8. Nf3 {[%clk 0:02:50]}  Bb4 {[%clk 0:02:51]} 9. Be2 {[%clk 0:02:49]}  O-O {[%clk 0:02:50]} 10. O-O {[%clk 0:02:49]}  a6 {[%clk 0:02:41]} 11. a3 {[%clk 0:02:48]}  Bd6 {[%clk 0:02:39]} 12. b4 {[%clk 0:02:48]}  Be6 {[%clk 0:02:31]} 13. Bb2 {[%clk 0:02:48]}  Rc8 {[%clk 0:02:32]} 14. Rc1 {[%clk 0:02:40]}  Qe7 {[%clk 0:02:31]} 15. Na4 {[%clk 0:02:33]}  Rfd8 {[%clk 0:02:20]} 16. Nd4 {[%clk 0:02:30]}  Nxd4 {[%clk 0:02:07]} 17. Qxd4 {[%clk 0:02:31]}  Ne8 {[%clk 0:01:54]} 18. h3 {[%clk 0:02:23]}  Qg5 {[%clk 0:01:28]} 19. Kh1 {[%clk 0:02:20]}  Be7 {[%clk 0:01:16]} 20. Qd2 {[%clk 0:01:54]}  Bf6 {[%clk 0:01:08]} 21. Bxf6 {[%clk 0:01:49]}  Nxf6 {[%clk 0:01:08]} 22. Qd4 {[%clk 0:01:48]}  Ne4 {[%clk 0:01:03]} 23. Nc5 {[%clk 0:01:47]}  Nxc5 {[%clk 0:01:00]} 24. bxc5 {[%clk 0:01:47]}  Bd7 {[%clk 0:00:55]} 25. Rfd1 {[%clk 0:01:44]}  Bc6 {[%clk 0:00:55]} 26. Bf3 {[%clk 0:01:43]}  h6 {[%clk 0:00:53]} 27. Rd2 {[%clk 0:01:43]}  Rd7 {[%clk 0:00:52]} 28. Bg4 {[%clk 0:01:42]}  f5 {[%clk 0:00:51]} 29. Bf3 {[%clk 0:01:41]}  Rcd8 {[%clk 0:00:52]} 30. Rcd1 {[%clk 0:01:41]}  Qe7 {[%clk 0:00:48]} 31. Qb2 {[%clk 0:01:38]}  Qxc5 {[%clk 0:00:41]} 32. Qe5 {[%clk 0:01:35]}  g6 {[%clk 0:00:29]} 33. Qe6+ {[%clk 0:01:24]}  Kg7 {[%clk 0:00:29]} 34. Qe5+ {[%clk 0:01:24]}  Kh7 {[%clk 0:00:27]} 35. Rd3 {[%clk 0:01:21]}  Qe7 {[%clk 0:00:18]} 36. Qb2 {[%clk 0:01:19]}  Qg7 {[%clk 0:00:17]} 37. Qb4 {[%clk 0:01:16]}  g5 {[%clk 0:00:16]} 38. Rd4 {[%clk 0:01:14]}  Qe7 {[%clk 0:00:14]} 39. Qb1 {[%clk 0:01:12]}  Kg7 {[%clk 0:00:12]} 40. Qxf5 {[%clk 0:01:10]}  Qf7 {[%clk 0:00:09]} 41. Qe5+ {[%clk 0:01:08]}  Qf6 {[%clk 0:00:10]} 42. Qg3 {[%clk 0:01:08]}  Qd6 {[%clk 0:00:09]} 43. Qg4 {[%clk 0:00:58]}  Qxa3 {[%clk 0:00:09]} 44. e4 {[%clk 0:00:56]}  Qe7 {[%clk 0:00:06]} 45. exd5 {[%clk 0:00:56]}  Bb5 {[%clk 0:00:07]} 46. d6 {[%clk 0:00:55]}  Qe5 {[%clk 0:00:05]} 47. Rd5 {[%clk 0:00:54]}  Qf6 {[%clk 0:00:04]} 48. Rf5 {[%clk 0:00:52]}  Qe6 {[%clk 0:00:03]} 49. Qd4+ {[%clk 0:00:51]}  Kh7 {[%clk 0:00:02]} 50. Be4 {[%clk 0:00:51]} 1-0


[Site "https://www.chess.com"]

[Event "Titled Tuesday Blitz December 13 Early 2022"]
[White "Oganian, Miran"]
[Black "Mogirzan, Matei-Valeriu"]
[WhiteFideId "4122488"]
[BlackFideId "1257455"]
[WhiteElo "2735"]
[BlackElo "2304"]
[Result "0-1"]
[Round "05"]
[TimeControl "180+1"]
[Date "2022.12.14"]
[WhiteClock "0:00:24"]
[BlackClock "0:00:05"]

1. e4 {[%clk 0:02:59]}  c5 {[%clk 0:02:56]} 2. Nf3 {[%clk 0:02:59]}  e6 {[%clk 0:02:54]} 3. c3 {[%clk 0:03:00]}  d5 {[%clk 0:02:54]} 4. exd5 {[%clk 0:03:00]}  exd5 {[%clk 0:02:55]} 5. d4 {[%clk 0:03:00]}  cxd4 {[%clk 0:02:56]} 6. Nxd4 {[%clk 0:03:00]}  Nc6 {[%clk 0:02:54]} 7. Bb5 {[%clk 0:03:00]}  Bd7 {[%clk 0:02:54]} 8. O-O {[%clk 0:03:00]}  Nf6 {[%clk 0:02:52]} 9. Bxc6 {[%clk 0:02:58]}  bxc6 {[%clk 0:02:51]} 10. Nd2 {[%clk 0:02:59]}  Be7 {[%clk 0:02:47]} 11. N2b3 {[%clk 0:02:58]}  O-O {[%clk 0:02:46]} 12. h3 {[%clk 0:02:58]}  Ne4 {[%clk 0:02:42]} 13. Nd2 {[%clk 0:02:55]}  f5 {[%clk 0:02:26]} 14. Re1 {[%clk 0:02:55]}  Bd6 {[%clk 0:02:19]} 15. Nf1 {[%clk 0:02:49]}  Qh4 {[%clk 0:02:09]} 16. Qc2 {[%clk 0:02:38]}  f4 {[%clk 0:01:53]} 17. Nf3 {[%clk 0:02:17]}  Qh5 {[%clk 0:01:48]} 18. N1h2 {[%clk 0:02:09]}  Bc5 {[%clk 0:01:31]} 19. Re2 {[%clk 0:02:02]}  Rf6 {[%clk 0:00:18]} 20. b4 {[%clk 0:01:50]}  Bb6 {[%clk 0:00:09]} 21. c4 {[%clk 0:01:34]}  Bxh3 {[%clk 0:00:07]} 22. c5 {[%clk 0:01:28]}  Rg6 {[%clk 0:00:04]} 23. Ne1 {[%clk 0:00:50]}  Bxg2 {[%clk 0:00:05]} 24. Nxg2 {[%clk 0:00:24]}  f3 {[%clk 0:00:05]} 25. Kh1 {[%clk 0:00:25]}  fxg2+ {[%clk 0:00:03]} 26. Kg1 {[%clk 0:00:24]}  Qxh2+ {[%clk 0:00:04]} 27. Kxh2 {[%clk 0:00:23]}  g1=Q+ {[%clk 0:00:05]} 28. Kh3 {[%clk 0:00:24]}  Qh1# {[%clk 0:00:05]} 0-1


[Site "https://www.chess.com"]

[Event "Titled Tuesday Blitz December 13 Early 2022"]
[White "Osiecki, Stanislaw"]
[Black "Petrova, Irina"]
[WhiteFideId "1102990"]
[BlackFideId "14124122"]
[WhiteElo "2088"]
[BlackElo "2023"]
[Result "0-1"]
[Round "05"]
[TimeControl "180+1"]
[Date "2022.12.14"]
[WhiteClock "0:00:37"]
[BlackClock "0:00:32"]

1. e4 {[%clk 0:03:00]}  d6 {[%clk 0:03:00]} 2. d4 {[%clk 0:03:00]}  Nf6 {[%clk 0:02:59]} 3. Nc3 {[%clk 0:02:57]}  e5 {[%clk 0:02:59]} 4. Nf3 {[%clk 0:02:54]}  Nbd7 {[%clk 0:02:59]} 5. Bc4 {[%clk 0:02:53]}  Be7 {[%clk 0:02:59]} 6. Bxf7+ {[%clk 0:02:49]}  Kxf7 {[%clk 0:03:00]} 7. Ng5+ {[%clk 0:02:49]}  Kg8 {[%clk 0:03:00]} 8. Ne6 {[%clk 0:02:49]}  Qe8 {[%clk 0:03:01]} 9. Nxc7 {[%clk 0:02:49]}  Qg6 {[%clk 0:03:01]} 10. Nxa8 {[%clk 0:02:49]}  Qxg2 {[%clk 0:03:01]} 11. Rf1 {[%clk 0:02:49]}  exd4 {[%clk 0:03:00]} 12. Qxd4 {[%clk 0:02:48]}  Ne5 {[%clk 0:02:59]} 13. f4 {[%clk 0:02:36]}  Bh3 {[%clk 0:02:40]} 14. Qf2 {[%clk 0:02:26]}  Qg4 {[%clk 0:01:40]} 15. fxe5 {[%clk 0:02:18]}  Bxf1 {[%clk 0:01:39]} 16. exf6 {[%clk 0:02:03]}  Bxf6 {[%clk 0:01:40]} 17. Kxf1 {[%clk 0:01:58]}  h5 {[%clk 0:01:06]} 18. Qg3 {[%clk 0:01:47]}  Qc8 {[%clk 0:00:59]} 19. Be3 {[%clk 0:01:33]}  Kh7 {[%clk 0:00:54]} 20. Nd5 {[%clk 0:01:22]}  Bxb2 {[%clk 0:00:46]} 21. Rb1 {[%clk 0:01:19]}  Qxc2 {[%clk 0:00:42]} 22. Rxb2 {[%clk 0:00:51]}  Qxb2 {[%clk 0:00:42]} 23. Nac7 {[%clk 0:00:43]}  Rf8+ {[%clk 0:00:40]} 24. Kg1 {[%clk 0:00:43]}  Qb1+ {[%clk 0:00:34]} 25. Kg2 {[%clk 0:00:37]}  Qf1# {[%clk 0:00:32]} 0-1


[Site "https://www.chess.com"]